[Event "Titled Tuesday Blitz June 1 2021"]
[White "Siva Mahadevan"]
[Black "Goltsev, Dmitry"]
[WhiteFideId "25043153"]
[BlackFideId "24176710"]
[WhiteElo "2203"]
[BlackElo "2366"]
[Result "1/2-1/2"]
[Round "07"]
[TimeControl "180+1"]
[Date "2021.06.01"]
[WhiteClock "0:00:20"]
[BlackClock "0:00:06"]

1. e4 {[%clk 0:03:00]}  c5 {[%clk 0:02:59]} 2. Nf3 {[%clk 0:03:00]}  e6 {[%clk 0:03:00]} 3. d4 {[%clk 0:03:01]}  cxd4 {[%clk 0:03:01]} 4. Nxd4 {[%clk 0:03:02]}  a6 {[%clk 0:03:01]} 5. Nc3 {[%clk 0:03:01]}  Qc7 {[%clk 0:03:02]} 6. Bd3 {[%clk 0:03:01]}  Nf6 {[%clk 0:03:02]} 7. O-O {[%clk 0:03:01]}  Bc5 {[%clk 0:03:03]} 8. Nb3 {[%clk 0:02:59]}  Ba7 {[%clk 0:03:03]} 9. Qe2 {[%clk 0:02:56]}  Nc6 {[%clk 0:03:01]} 10. Be3 {[%clk 0:02:56]}  Bxe3 {[%clk 0:02:57]} 11. Qxe3 {[%clk 0:02:57]}  Ng4 {[%clk 0:02:56]} 12. Qh3 {[%clk 0:02:51]}  h5 {[%clk 0:02:55]} 13. Be2 {[%clk 0:02:44]}  Nce5 {[%clk 0:02:50]} 14. f4 {[%clk 0:02:38]}  Ng6 {[%clk 0:02:12]} 15. Bxg4 {[%clk 0:02:33]}  hxg4 {[%clk 0:02:12]} 16. Qxg4 {[%clk 0:02:34]}  Rh4 {[%clk 0:02:05]} 17. Qg3 {[%clk 0:01:42]}  Rxf4 {[%clk 0:02:03]} 18. Rfe1 {[%clk 0:01:43]}  b5 {[%clk 0:01:57]} 19. Kh1 {[%clk 0:01:41]}  Bb7 {[%clk 0:01:56]} 20. Ne2 {[%clk 0:01:40]}  Rc8 {[%clk 0:01:48]} 21. Nxf4 {[%clk 0:01:39]}  Qxf4 {[%clk 0:01:49]} 22. Qxf4 {[%clk 0:01:38]}  Nxf4 {[%clk 0:01:50]} 23. c3 {[%clk 0:01:37]}  Nd3 {[%clk 0:01:48]} 24. Re2 {[%clk 0:01:33]}  Bxe4 {[%clk 0:01:48]} 25. Kg1 {[%clk 0:01:32]}  f5 {[%clk 0:01:46]} 26. Rd1 {[%clk 0:01:29]}  Ke7 {[%clk 0:01:44]} 27. a3 {[%clk 0:01:16]}  g5 {[%clk 0:01:37]} 28. Red2 {[%clk 0:01:09]}  Ne5 {[%clk 0:01:35]} 29. Nd4 {[%clk 0:01:05]}  Nc4 {[%clk 0:01:33]} 30. Re2 {[%clk 0:01:05]}  d5 {[%clk 0:01:31]} 31. a4 {[%clk 0:01:00]}  bxa4 {[%clk 0:01:30]} 32. Ra1 {[%clk 0:01:00]}  e5 {[%clk 0:01:29]} 33. Nf3 {[%clk 0:00:56]}  g4 {[%clk 0:01:27]} 34. Nd2 {[%clk 0:00:56]}  Bd3 {[%clk 0:01:16]} 35. Nxc4 {[%clk 0:00:50]}  Bxe2 {[%clk 0:01:15]} 36. Nxe5 {[%clk 0:00:51]}  Bb5 {[%clk 0:00:47]} 37. Ng6+ {[%clk 0:00:35]}  Kd6 {[%clk 0:00:45]} 38. Nf4 {[%clk 0:00:36]}  Ke5 {[%clk 0:00:36]} 39. g3 {[%clk 0:00:36]}  Rc4 {[%clk 0:00:28]} 40. Ne2 {[%clk 0:00:27]}  Re4 {[%clk 0:00:21]} 41. Nd4 {[%clk 0:00:28]}  f4 {[%clk 0:00:21]} 42. gxf4+ {[%clk 0:00:26]}  Kxf4 {[%clk 0:00:19]} 43. Kf2 {[%clk 0:00:27]}  Re8 {[%clk 0:00:18]} 44. Rd1 {[%clk 0:00:24]}  Rh8 {[%clk 0:00:16]} 45. Kg2 {[%clk 0:00:20]}  Ke4 {[%clk 0:00:16]} 46. Re1+ {[%clk 0:00:18]}  Kd3 {[%clk 0:00:15]} 47. Rd1+ {[%clk 0:00:18]}  Kc4 {[%clk 0:00:13]} 48. Nxb5 {[%clk 0:00:18]}  axb5 {[%clk 0:00:14]} 49. Rd4+ {[%clk 0:00:19]}  Kb3 {[%clk 0:00:10]} 50. Rb4+ {[%clk 0:00:19]}  Kc2 {[%clk 0:00:08]} 51. Rxb5 {[%clk 0:00:19]}  Rd8 {[%clk 0:00:08]} 52. Kg3 {[%clk 0:00:19]}  d4 {[%clk 0:00:08]} 53. cxd4 {[%clk 0:00:19]}  Rxd4 {[%clk 0:00:09]} 54. Rb8 {[%clk 0:00:18]}  Re4 {[%clk 0:00:04]} 55. Rb7 {[%clk 0:00:17]}  Rd4 {[%clk 0:00:05]} 56. Rb8 {[%clk 0:00:18]}  Rd3+ {[%clk 0:00:05]} 57. Kxg4 {[%clk 0:00:18]}  Rb3 {[%clk 0:00:05]} 58. Ra8 {[%clk 0:00:17]}  Rb4+ {[%clk 0:00:06]} 59. Kg5 {[%clk 0:00:18]}  Kxb2 {[%clk 0:00:04]} 60. h4 {[%clk 0:00:19]}  Rb5+ {[%clk 0:00:04]} 61. Kg6 {[%clk 0:00:19]}  a3 {[%clk 0:00:03]} 62. h5 {[%clk 0:00:19]}  Rb6+ {[%clk 0:00:04]} 63. Kg7 {[%clk 0:00:18]}  a2 {[%clk 0:00:04]} 64. h6 {[%clk 0:00:18]}  Rb7+ {[%clk 0:00:04]} 65. Kg6 {[%clk 0:00:18]}  Rb6+ {[%clk 0:00:05]} 66. Kg7 {[%clk 0:00:19]}  Rb7+ {[%clk 0:00:04]} 67. Kg6 {[%clk 0:00:19]}  Kb1 {[%clk 0:00:05]} 68. Rxa2 {[%clk 0:00:18]}  Kxa2 {[%clk 0:00:05]} 69. h7 {[%clk 0:00:19]}  Rb8 {[%clk 0:00:05]} 70. Kg7 {[%clk 0:00:19]}  Kb3 {[%clk 0:00:06]} 71. h8=Q {[%clk 0:00:19]}  Rxh8 {[%clk 0:00:06]} 72. Kxh8 {[%clk 0:00:20]} 1/2-1/2


[Site "https://www.chess.com"]

[Event "Titled Tuesday Blitz June 1 2021"]
[White "Soto Vega, Jorge"]
[Black "Martin Duque, Jesus"]
[WhiteFideId "3800580"]
[BlackFideId "2208954"]
[WhiteElo "2259"]
[BlackElo "2246"]
[Result "1/2-1/2"]
[Round "07"]
[TimeControl "180+1"]
[Date "2021.06.01"]
[WhiteClock "0:00:47"]
[BlackClock "0:00:06"]

1. e4 {[%clk 0:02:59]}  c5 {[%clk 0:02:59]} 2. Nf3 {[%clk 0:02:58]}  e6 {[%clk 0:03:00]} 3. d4 {[%clk 0:02:56]}  cxd4 {[%clk 0:03:00]} 4. Nxd4 {[%clk 0:02:57]}  Nc6 {[%clk 0:03:01]} 5. Nb5 {[%clk 0:02:56]}  d6 {[%clk 0:03:01]} 6. Bf4 {[%clk 0:02:55]}  e5 {[%clk 0:03:01]} 7. Be3 {[%clk 0:02:56]}  Be7 {[%clk 0:02:58]} 8. c4 {[%clk 0:02:54]}  Nf6 {[%clk 0:02:55]} 9. f3 {[%clk 0:02:50]}  O-O {[%clk 0:02:51]} 10. Be2 {[%clk 0:02:49]}  a6 {[%clk 0:02:41]} 11. N5c3 {[%clk 0:02:49]}  Be6 {[%clk 0:02:40]} 12. O-O {[%clk 0:02:43]}  Rc8 {[%clk 0:02:39]} 13. Nd5 {[%clk 0:02:35]}  Nd7 {[%clk 0:02:33]} 14. Qd2 {[%clk 0:02:33]}  Nd4 {[%clk 0:02:21]} 15. Nbc3 {[%clk 0:02:19]}  Nxe2+ {[%clk 0:02:15]} 16. Qxe2 {[%clk 0:02:18]}  Bg5 {[%clk 0:02:11]} 17. Bf2 {[%clk 0:02:16]}  g6 {[%clk 0:01:54]} 18. Rfd1 {[%clk 0:02:15]}  f5 {[%clk 0:01:49]} 19. b4 {[%clk 0:01:58]}  Nf6 {[%clk 0:01:16]} 20. Nxf6+ {[%clk 0:01:53]}  Bxf6 {[%clk 0:01:06]} 21. c5 {[%clk 0:01:52]}  Rc6 {[%clk 0:00:54]} 22. Nd5 {[%clk 0:01:40]}  Bg5 {[%clk 0:00:54]} 23. a4 {[%clk 0:01:28]}  fxe4 {[%clk 0:00:27]} 24. Qxe4 {[%clk 0:01:28]}  Bf4 {[%clk 0:00:25]} 25. b5 {[%clk 0:01:21]}  axb5 {[%clk 0:00:24]} 26. axb5 {[%clk 0:01:21]}  Rc8 {[%clk 0:00:23]} 27. Nxf4 {[%clk 0:01:15]}  Rxf4 {[%clk 0:00:23]} 28. Qxb7 {[%clk 0:01:15]}  d5 {[%clk 0:00:16]} 29. c6 {[%clk 0:01:10]}  Rf7 {[%clk 0:00:16]} 30. Qa6 {[%clk 0:01:10]}  e4 {[%clk 0:00:16]} 31. fxe4 {[%clk 0:01:08]}  Qg5 {[%clk 0:00:15]} 32. exd5 {[%clk 0:01:05]}  Bh3 {[%clk 0:00:13]} 33. Bg3 {[%clk 0:01:05]}  Qe3+ {[%clk 0:00:10]} 34. Kh1 {[%clk 0:01:03]}  Bxg2+ {[%clk 0:00:10]} 35. Kxg2 {[%clk 0:01:02]}  Qf3+ {[%clk 0:00:08]} 36. Kh3 {[%clk 0:01:02]}  Qh5+ {[%clk 0:00:05]} 37. Kg2 {[%clk 0:00:48]}  Qf3+ {[%clk 0:00:05]} 38. Kg1 {[%clk 0:00:48]}  Qe3+ {[%clk 0:00:05]} 39. Kg2 {[%clk 0:00:47]}  Qf3+ {[%clk 0:00:06]} 1/2-1/2


[Site "https://www.chess.com"]

[Event "Titled Tuesday Blitz June 1 2021"]
[White "Sukandar, Irine Kharisma"]
[Black "Nevednichy, Vladislav"]
[WhiteFideId "7101937"]
[BlackFideId "1205730"]
[WhiteElo "2313"]
[BlackElo "2366"]
[Result "0-1"]
[Round "07"]
[TimeControl "180+1"]
[Date "2021.06.01"]
[WhiteClock "0:00:59"]
[BlackClock "0:02:08"]

1. d4 {[%clk 0:03:00]}  Nf6 {[%clk 0:02:58]} 2. Bf4 {[%clk 0:03:00]}  g6 {[%clk 0:02:57]} 3. Nc3 {[%clk 0:02:54]}  d6 {[%clk 0:02:55]} 4. e4 {[%clk 0:02:54]}  c6 {[%clk 0:02:55]} 5. Qd2 {[%clk 0:02:52]}  h6 {[%clk 0:02:54]} 6. O-O-O {[%clk 0:02:51]}  Bg7 {[%clk 0:02:54]} 7. Bd3 {[%clk 0:02:51]}  b5 {[%clk 0:02:53]} 8. e5 {[%clk 0:02:50]}  b4 {[%clk 0:02:44]} 9. exf6 {[%clk 0:02:11]}  bxc3 {[%clk 0:02:43]} 10. Qxc3 {[%clk 0:02:09]}  Bxf6 {[%clk 0:02:42]} 11. Ne2 {[%clk 0:02:06]}  Qb6 {[%clk 0:02:40]} 12. Kb1 {[%clk 0:01:58]}  Na6 {[%clk 0:02:39]} 13. a3 {[%clk 0:01:47]}  Nc7 {[%clk 0:02:38]} 14. Be4 {[%clk 0:01:44]}  Bd7 {[%clk 0:02:34]} 15. Qd2 {[%clk 0:01:40]}  Rb8 {[%clk 0:02:29]} 16. c4 {[%clk 0:01:38]}  d5 {[%clk 0:02:23]} 17. Bxc7 {[%clk 0:01:33]}  Qxc7 {[%clk 0:02:22]} 18. cxd5 {[%clk 0:01:33]}  cxd5 {[%clk 0:02:20]} 19. Bxd5 {[%clk 0:01:33]}  Qd6 {[%clk 0:02:16]} 20. Be4 {[%clk 0:01:21]}  Qxa3 {[%clk 0:02:14]} 21. h4 {[%clk 0:01:12]}  Be6 {[%clk 0:02:12]} 22. Bc6+ {[%clk 0:01:07]}  Kf8 {[%clk 0:02:12]} 23. Nc1 {[%clk 0:00:59]}  Bf5+ {[%clk 0:02:08]} 0-1


[Site "https://www.chess.com"]

[Event "Titled Tuesday Blitz June 1 2021"]
[White "Szente Varga, Fruzsina"]
[Black "Nygren, Kim"]
[WhiteFideId "712264"]
[BlackFideId "1706136"]
[WhiteElo "2106"]
[BlackElo "2257"]
[Result "1-0"]
[Round "07"]
[TimeControl "180+1"]
[Date "2021.06.01"]
[WhiteClock "0:00:19"]
[BlackClock "0:00:01"]

1. e4 {[%clk 0:03:00]}  c5 {[%clk 0:02:40]} 2. Nf3 {[%clk 0:03:00]}  d6 {[%clk 0:02:35]} 3. d4 {[%clk 0:03:00]}  cxd4 {[%clk 0:02:36]} 4. Qxd4 {[%clk 0:03:01]}  e5 {[%clk 0:02:33]} 5. Bb5+ {[%clk 0:02:58]}  Nc6 {[%clk 0:02:31]} 6. Qd3 {[%clk 0:02:57]}  Bd7 {[%clk 0:02:28]} 7. c4 {[%clk 0:02:56]}  Nb4 {[%clk 0:02:26]} 8. Qe2 {[%clk 0:02:53]}  Rc8 {[%clk 0:02:10]} 9. Nc3 {[%clk 0:02:52]}  Nf6 {[%clk 0:01:57]} 10. O-O {[%clk 0:02:48]}  Be7 {[%clk 0:01:56]} 11. h3 {[%clk 0:02:48]}  O-O {[%clk 0:01:48]} 12. Be3 {[%clk 0:02:47]}  a6 {[%clk 0:01:40]} 13. Bxd7 {[%clk 0:02:47]}  Qxd7 {[%clk 0:01:31]} 14. a3 {[%clk 0:02:46]}  Nc6 {[%clk 0:01:28]} 15. b4 {[%clk 0:02:46]}  Rfd8 {[%clk 0:01:20]} 16. Rfd1 {[%clk 0:02:43]}  h6 {[%clk 0:01:17]} 17. Rac1 {[%clk 0:02:40]}  Bf8 {[%clk 0:01:09]} 18. b5 {[%clk 0:02:25]}  axb5 {[%clk 0:00:47]} 19. cxb5 {[%clk 0:02:26]}  Ne7 {[%clk 0:00:47]} 20. Nxe5 {[%clk 0:02:24]}  Qe6 {[%clk 0:00:47]} 21. Nf3 {[%clk 0:01:57]}  Nxe4 {[%clk 0:00:39]} 22. Nxe4 {[%clk 0:01:58]}  Qxe4 {[%clk 0:00:39]} 23. Rxc8 {[%clk 0:01:57]}  Rxc8 {[%clk 0:00:35]} 24. Rxd6 {[%clk 0:01:55]}  Nf5 {[%clk 0:00:26]} 25. Rd3 {[%clk 0:01:39]}  Rc1+ {[%clk 0:00:22]} 26. Kh2 {[%clk 0:01:39]}  Bd6+ {[%clk 0:00:19]} 27. Rxd6 {[%clk 0:01:13]}  Nxd6 {[%clk 0:00:16]} 28. Qd2 {[%clk 0:01:13]}  Rc8 {[%clk 0:00:05]} 29. Qxd6 {[%clk 0:01:12]}  Qc4 {[%clk 0:00:05]} 30. b6 {[%clk 0:01:10]}  Qb5 {[%clk 0:00:04]} 31. Qe7 {[%clk 0:00:58]}  Qc6 {[%clk 0:00:04]} 32. Ne5 {[%clk 0:00:52]}  Qd5 {[%clk 0:00:04]} 33. Nf3 {[%clk 0:00:32]}  Ra8 {[%clk 0:00:04]} 34. Qc7 {[%clk 0:00:25]}  Re8 {[%clk 0:00:02]} 35. a4 {[%clk 0:00:23]}  Qe6 {[%clk 0:00:03]} 36. a5 {[%clk 0:00:22]}  g5 {[%clk 0:00:03]} 37. Qxb7 {[%clk 0:00:20]}  Qd6+ {[%clk 0:00:02]} 38. g3 {[%clk 0:00:20]}  Re6 {[%clk 0:00:01]} 39. Qc8+ {[%clk 0:00:19]} 1-0


[Site "https://www.chess.com"]

[Event "Titled Tuesday Blitz June 1 2021"]
[White "TanitoluwaAps116"]
[Black "Cruz, Jonathan"]
[BlackFideId "3802124"]
[WhiteElo "2410"]
[BlackElo "2381"]
[Result "1-0"]
[Round "07"]
[TimeControl "180+1"]
[Date "2021.06.01"]
[WhiteClock "0:00:43"]
[BlackClock "0:00:03"]

1. d4 {[%clk 0:03:00]}  c6 {[%clk 0:02:57]} 2. Bf4 {[%clk 0:02:57]}  d5 {[%clk 0:02:57]} 3. e3 {[%clk 0:02:57]}  Nf6 {[%clk 0:02:58]} 4. Nf3 {[%clk 0:02:53]}  g6 {[%clk 0:02:57]} 5. h4 {[%clk 0:02:51]}  Bg7 {[%clk 0:02:54]} 6. h5 {[%clk 0:02:51]}  Nxh5 {[%clk 0:02:54]} 7. Rxh5 {[%clk 0:02:51]}  gxh5 {[%clk 0:02:53]} 8. Be2 {[%clk 0:02:48]}  Bg4 {[%clk 0:02:52]} 9. Nbd2 {[%clk 0:02:47]}  Nd7 {[%clk 0:02:51]} 10. Ng5 {[%clk 0:02:46]}  Bxe2 {[%clk 0:02:48]} 11. Qxe2 {[%clk 0:02:47]}  Nf6 {[%clk 0:02:48]} 12. Ndf3 {[%clk 0:02:45]}  h6 {[%clk 0:02:44]} 13. Nh3 {[%clk 0:02:42]}  Qa5+ {[%clk 0:02:41]} 14. c3 {[%clk 0:02:42]}  Ne4 {[%clk 0:02:32]} 15. Nh4 {[%clk 0:02:42]}  O-O-O {[%clk 0:02:13]} 16. Qxh5 {[%clk 0:02:31]}  Bf6 {[%clk 0:01:50]} 17. Nf5 {[%clk 0:02:10]}  Nxc3 {[%clk 0:01:42]} 18. Qxf7 {[%clk 0:01:59]}  Ne4+ {[%clk 0:01:37]} 19. Kf1 {[%clk 0:02:00]}  Qb5+ {[%clk 0:01:12]} 20. Kg1 {[%clk 0:02:00]}  Qxb2 {[%clk 0:01:10]} 21. Nxe7+ {[%clk 0:01:20]}  Bxe7 {[%clk 0:01:04]} 22. Qxe7 {[%clk 0:01:21]}  Qxa1+ {[%clk 0:00:59]} 23. Kh2 {[%clk 0:01:21]}  Nd6 {[%clk 0:00:38]} 24. Bxd6 {[%clk 0:01:19]}  Rd7 {[%clk 0:00:37]} 25. Qe6 {[%clk 0:00:58]}  Qb1 {[%clk 0:00:20]} 26. Nf4 {[%clk 0:00:49]}  Qe4 {[%clk 0:00:18]} 27. Be5 {[%clk 0:00:49]}  Rf8 {[%clk 0:00:11]} 28. Ng6 {[%clk 0:00:46]}  Rxf2 {[%clk 0:00:03]} 29. Qe8+ {[%clk 0:00:43]} 1-0


[Site "https://www.chess.com"]

[Event "Titled Tuesday Blitz June 1 2021"]
[White "Terry, Renato"]
[Black "Bonte, Andrei-Mihai"]
[WhiteFideId "3803457"]
[BlackFideId "1210297"]
[WhiteElo "2581"]
[BlackElo "2200"]
[Result "1-0"]
[Round "07"]
[TimeControl "180+1"]
[Date "2021.06.01"]
[WhiteClock "0:01:13"]
[BlackClock "0:00:11"]

1. e4 {[%clk 0:03:00]}  e6 {[%clk 0:03:00]} 2. d4 {[%clk 0:03:00]}  d5 {[%clk 0:03:00]} 3. exd5 {[%clk 0:03:00]}  exd5 {[%clk 0:03:00]} 4. Nf3 {[%clk 0:03:00]}  Nf6 {[%clk 0:03:00]} 5. Bd3 {[%clk 0:02:56]}  Be7 {[%clk 0:03:00]} 6. O-O {[%clk 0:02:55]}  O-O {[%clk 0:03:00]} 7. h3 {[%clk 0:02:55]}  h6 {[%clk 0:02:55]} 8. Re1 {[%clk 0:02:52]}  Re8 {[%clk 0:02:55]} 9. Bf4 {[%clk 0:02:49]}  Nc6 {[%clk 0:02:46]} 10. c3 {[%clk 0:02:49]}  Bd6 {[%clk 0:02:44]} 11. Ne5 {[%clk 0:02:46]}  Bxe5 {[%clk 0:02:22]} 12. dxe5 {[%clk 0:02:46]}  Ne4 {[%clk 0:02:22]} 13. Nd2 {[%clk 0:02:34]}  Bf5 {[%clk 0:01:42]} 14. Nxe4 {[%clk 0:02:28]}  dxe4 {[%clk 0:01:42]} 15. Bxe4 {[%clk 0:02:29]}  Bxe4 {[%clk 0:01:40]} 16. Rxe4 {[%clk 0:02:30]}  Qxd1+ {[%clk 0:01:36]} 17. Rxd1 {[%clk 0:02:31]}  Rad8 {[%clk 0:01:35]} 18. Rde1 {[%clk 0:02:31]}  Rd5 {[%clk 0:01:28]} 19. e6 {[%clk 0:02:27]}  fxe6 {[%clk 0:01:27]} 20. Rxe6 {[%clk 0:02:28]}  Rxe6 {[%clk 0:01:27]} 21. Rxe6 {[%clk 0:02:29]}  Kf7 {[%clk 0:01:20]} 22. Re2 {[%clk 0:02:27]}  Rd7 {[%clk 0:01:19]} 23. g4 {[%clk 0:02:25]}  Nd8 {[%clk 0:01:18]} 24. Be3 {[%clk 0:02:21]}  Ne6 {[%clk 0:01:11]} 25. f4 {[%clk 0:02:19]}  g6 {[%clk 0:01:09]} 26. Kf2 {[%clk 0:02:15]}  b6 {[%clk 0:01:08]} 27. Kf3 {[%clk 0:02:11]}  Rd5 {[%clk 0:01:06]} 28. Rd2 {[%clk 0:01:46]}  c6 {[%clk 0:01:01]} 29. c4 {[%clk 0:01:39]}  Rxd2 {[%clk 0:00:59]} 30. Bxd2 {[%clk 0:01:39]}  Nc5 {[%clk 0:00:41]} 31. Be3 {[%clk 0:01:30]}  Nd3 {[%clk 0:00:20]} 32. Bd4 {[%clk 0:01:28]}  c5 {[%clk 0:00:19]} 33. Bc3 {[%clk 0:01:28]}  Nc1 {[%clk 0:00:18]} 34. a3 {[%clk 0:01:26]}  Nb3 {[%clk 0:00:17]} 35. Ke4 {[%clk 0:01:25]}  Ke6 {[%clk 0:00:13]} 36. f5+ {[%clk 0:01:24]}  gxf5+ {[%clk 0:00:14]} 37. gxf5+ {[%clk 0:01:25]}  Kd7 {[%clk 0:00:13]} 38. Kd5 {[%clk 0:01:22]}  Nc1 {[%clk 0:00:12]} 39. Bg7 {[%clk 0:01:19]}  h5 {[%clk 0:00:12]} 40. f6 {[%clk 0:01:20]}  Nd3 {[%clk 0:00:11]} 41. f7 {[%clk 0:01:19]}  Nf4+ {[%clk 0:00:10]} 42. Ke5 {[%clk 0:01:12]}  Ng6+ {[%clk 0:00:11]} 43. Kf6 {[%clk 0:01:13]} 1-0


[Site "https://www.chess.com"]

[Event "Titled Tuesday Blitz June 1 2021"]
[White "Timmermans, Mark"]
[Black "Le, Tuan Minh"]
[WhiteFideId "1026399"]
[BlackFideId "12401153"]
[WhiteElo "2460"]
[BlackElo "2450"]
[Result "1/2-1/2"]
[Round "07"]
[TimeControl "180+1"]
[Date "2021.06.01"]
[WhiteClock "0:00:46"]
[BlackClock "0:00:04"]

1. b4 {[%clk 0:03:00]}  d5 {[%clk 0:02:56]} 2. Bb2 {[%clk 0:03:00]}  Bg4 {[%clk 0:02:56]} 3. Nf3 {[%clk 0:03:00]}  Nd7 {[%clk 0:02:55]} 4. b5 {[%clk 0:03:00]}  Ngf6 {[%clk 0:02:54]} 5. a4 {[%clk 0:02:59]}  e6 {[%clk 0:02:54]} 6. e3 {[%clk 0:02:59]}  Bd6 {[%clk 0:02:53]} 7. Be2 {[%clk 0:02:59]}  O-O {[%clk 0:02:52]} 8. d4 {[%clk 0:02:58]}  c5 {[%clk 0:02:47]} 9. dxc5 {[%clk 0:02:56]}  Nxc5 {[%clk 0:02:47]} 10. O-O {[%clk 0:02:56]}  Rc8 {[%clk 0:02:47]} 11. Nbd2 {[%clk 0:02:56]}  Nce4 {[%clk 0:02:46]} 12. c4 {[%clk 0:02:50]}  Bxf3 {[%clk 0:02:41]} 13. Bxf3 {[%clk 0:02:45]}  Nxd2 {[%clk 0:02:40]} 14. Qxd2 {[%clk 0:02:46]}  Rxc4 {[%clk 0:02:33]} 15. Rfc1 {[%clk 0:02:43]}  Rxc1+ {[%clk 0:01:55]} 16. Rxc1 {[%clk 0:02:44]}  Nd7 {[%clk 0:01:56]} 17. e4 {[%clk 0:02:15]}  dxe4 {[%clk 0:01:14]} 18. Qxd6 {[%clk 0:02:16]}  exf3 {[%clk 0:01:15]} 19. gxf3 {[%clk 0:02:17]}  Nb6 {[%clk 0:01:06]} 20. Qg3 {[%clk 0:02:07]}  f6 {[%clk 0:01:00]} 21. a5 {[%clk 0:02:07]}  Nd5 {[%clk 0:00:59]} 22. a6 {[%clk 0:02:07]}  bxa6 {[%clk 0:00:59]} 23. bxa6 {[%clk 0:02:08]}  Qb6 {[%clk 0:00:49]} 24. Ba3 {[%clk 0:02:07]}  Re8 {[%clk 0:00:49]} 25. Qd6 {[%clk 0:02:03]}  Qxd6 {[%clk 0:00:41]} 26. Bxd6 {[%clk 0:02:04]}  Rd8 {[%clk 0:00:42]} 27. Rc6 {[%clk 0:02:03]}  Kf7 {[%clk 0:00:36]} 28. Kf1 {[%clk 0:01:54]}  Rd7 {[%clk 0:00:37]} 29. f4 {[%clk 0:01:51]}  Kg6 {[%clk 0:00:34]} 30. Ke2 {[%clk 0:01:47]}  Kf5 {[%clk 0:00:34]} 31. Kf3 {[%clk 0:01:47]}  h5 {[%clk 0:00:33]} 32. h4 {[%clk 0:01:47]}  Kg6 {[%clk 0:00:28]} 33. Bc5 {[%clk 0:01:44]}  Kf7 {[%clk 0:00:27]} 34. Bd6 {[%clk 0:01:43]}  g6 {[%clk 0:00:18]} 35. Ke4 {[%clk 0:01:40]}  f5+ {[%clk 0:00:14]} 36. Ke5 {[%clk 0:01:32]}  Nb4 {[%clk 0:00:08]} 37. Rc7 {[%clk 0:01:29]}  Rxc7 {[%clk 0:00:06]} 38. Bxc7 {[%clk 0:01:30]}  Nxa6 {[%clk 0:00:06]} 39. Bd6 {[%clk 0:01:30]}  Ke8 {[%clk 0:00:02]} 40. Kxe6 {[%clk 0:01:31]}  Kd8 {[%clk 0:00:03]} 41. f3 {[%clk 0:01:18]}  Nc7+ {[%clk 0:00:03]} 42. Kf7 {[%clk 0:01:11]}  Kd7 {[%clk 0:00:04]} 43. Be5 {[%clk 0:01:06]}  Nd5 {[%clk 0:00:03]} 44. Kxg6 {[%clk 0:01:06]}  Ke6 {[%clk 0:00:04]} 45. Kxh5 {[%clk 0:01:01]}  Kf7 {[%clk 0:00:04]} 46. Kg5 {[%clk 0:01:01]}  Ne7 {[%clk 0:00:04]} 47. h5 {[%clk 0:00:56]}  a5 {[%clk 0:00:04]} 48. h6 {[%clk 0:00:54]}  Kg8 {[%clk 0:00:04]} 49. Kf6 {[%clk 0:00:53]}  Nc6 {[%clk 0:00:02]} 50. Ba1 {[%clk 0:00:51]}  Kh7 {[%clk 0:00:02]} 51. Kxf5 {[%clk 0:00:51]}  Kxh6 {[%clk 0:00:02]} 52. Ke6 {[%clk 0:00:51]}  Kh7 {[%clk 0:00:02]} 53. f5 {[%clk 0:00:52]}  Kg8 {[%clk 0:00:02]} 54. f6 {[%clk 0:00:52]}  Kf8 {[%clk 0:00:02]} 55. Bb2 {[%clk 0:00:52]}  Nd8+ {[%clk 0:00:02]} 56. Kf5 {[%clk 0:00:50]}  Kf7 {[%clk 0:00:02]} 57. Ke5 {[%clk 0:00:49]}  Nc6+ {[%clk 0:00:03]} 58. Kd5 {[%clk 0:00:48]}  Nb4+ {[%clk 0:00:03]} 59. Kc4 {[%clk 0:00:48]}  Nc2 {[%clk 0:00:03]} 60. Kb5 {[%clk 0:00:47]}  Ne1 {[%clk 0:00:03]} 61. f4 {[%clk 0:00:47]}  Nd3 {[%clk 0:00:03]} 62. Be5 {[%clk 0:00:47]}  Nxf4 {[%clk 0:00:03]} 63. Bxf4 {[%clk 0:00:45]}  Kxf6 {[%clk 0:00:04]} 64. Kxa5 {[%clk 0:00:46]} 1/2-1/2


[Site "https://www.chess.com"]

[Event "Titled Tuesday Blitz June 1 2021"]
[White "Vazquez, Guillermo"]
[Black "Solon, Nathan"]
[WhiteFideId "3702308"]
[BlackFideId "2017229"]
[WhiteElo "2861"]
[BlackElo "2611"]
[Result "1/2-1/2"]
[Round "07"]
[TimeControl "180+1"]
[Date "2021.06.01"]
[WhiteClock "0:00:15"]
[BlackClock "0:00:15"]

1. d4 {[%clk 0:03:00]}  d5 {[%clk 0:03:00]} 2. Bf4 {[%clk 0:03:00]}  c5 {[%clk 0:02:58]} 3. e3 {[%clk 0:03:00]}  Nc6 {[%clk 0:02:58]} 4. c3 {[%clk 0:02:57]}  Bf5 {[%clk 0:02:58]} 5. Nd2 {[%clk 0:02:56]}  e6 {[%clk 0:02:58]} 6. h4 {[%clk 0:02:45]}  h6 {[%clk 0:02:51]} 7. g4 {[%clk 0:02:43]}  Bh7 {[%clk 0:02:45]} 8. Bg2 {[%clk 0:02:40]}  Qb6 {[%clk 0:02:41]} 9. Qc1 {[%clk 0:02:25]}  cxd4 {[%clk 0:02:29]} 10. exd4 {[%clk 0:02:26]}  Rc8 {[%clk 0:02:29]} 11. Nb3 {[%clk 0:02:09]}  Nb4 {[%clk 0:02:22]} 12. Kf1 {[%clk 0:02:10]}  Nf6 {[%clk 0:02:01]} 13. Qd1 {[%clk 0:01:59]}  Nd3 {[%clk 0:01:53]} 14. Bc1 {[%clk 0:01:58]}  Qa6 {[%clk 0:01:38]} 15. Qe2 {[%clk 0:01:44]}  Nxc1 {[%clk 0:01:38]} 16. Nxc1 {[%clk 0:01:45]}  Nxg4 {[%clk 0:01:33]} 17. Qxa6 {[%clk 0:01:41]}  bxa6 {[%clk 0:01:34]} 18. Nge2 {[%clk 0:01:30]}  Rb8 {[%clk 0:01:32]} 19. b4 {[%clk 0:01:29]}  Be7 {[%clk 0:01:26]} 20. Nb3 {[%clk 0:01:26]}  O-O {[%clk 0:01:19]} 21. Ke1 {[%clk 0:01:25]}  Rfc8 {[%clk 0:01:18]} 22. Rc1 {[%clk 0:01:24]}  Nf6 {[%clk 0:01:08]} 23. a3 {[%clk 0:01:05]}  Ne4 {[%clk 0:01:07]} 24. Nc5 {[%clk 0:01:01]}  a5 {[%clk 0:01:04]} 25. Bxe4 {[%clk 0:00:53]}  Bxe4 {[%clk 0:01:03]} 26. Rh3 {[%clk 0:00:45]}  axb4 {[%clk 0:01:00]} 27. cxb4 {[%clk 0:00:42]}  a5 {[%clk 0:01:00]} 28. Rhc3 {[%clk 0:00:33]}  axb4 {[%clk 0:00:56]} 29. axb4 {[%clk 0:00:33]}  Bf5 {[%clk 0:00:37]} 30. Ng3 {[%clk 0:00:23]}  Rxb4 {[%clk 0:00:35]} 31. Nxf5 {[%clk 0:00:22]}  exf5 {[%clk 0:00:36]} 32. Nd7 {[%clk 0:00:15]}  Rxc3 {[%clk 0:00:36]} 33. Rxc3 {[%clk 0:00:15]}  Rxd4 {[%clk 0:00:34]} 34. Rc8+ {[%clk 0:00:15]}  Kh7 {[%clk 0:00:34]} 35. Re8 {[%clk 0:00:16]}  Bb4+ {[%clk 0:00:26]} 36. Kf1 {[%clk 0:00:15]}  Rxh4 {[%clk 0:00:25]} 37. Re5 {[%clk 0:00:16]}  g6 {[%clk 0:00:19]} 38. Rxd5 {[%clk 0:00:16]}  Kg7 {[%clk 0:00:18]} 39. Rb5 {[%clk 0:00:16]}  Be7 {[%clk 0:00:18]} 40. Rb7 {[%clk 0:00:17]}  Bf6 {[%clk 0:00:17]} 41. Nc5 {[%clk 0:00:16]}  g5 {[%clk 0:00:15]} 42. Ne6+ {[%clk 0:00:14]}  Kg6 {[%clk 0:00:14]} 43. Nf8+ {[%clk 0:00:14]}  Kg7 {[%clk 0:00:15]} 44. Ne6+ {[%clk 0:00:15]}  Kg8 {[%clk 0:00:15]} 45. Rb8+ {[%clk 0:00:14]}  Kh7 {[%clk 0:00:16]} 46. Rb7 {[%clk 0:00:15]}  Kg6 {[%clk 0:00:15]} 47. Nf8+ {[%clk 0:00:14]}  Kg7 {[%clk 0:00:15]} 48. Ne6+ {[%clk 0:00:15]} 1/2-1/2


[Site "https://www.chess.com"]